bitfinex/quotes_SOLUSD_20240623
["timestamp","ask_amount","ask_price","bid_price","bid_amount"]
[1719133259126,27.442,134.89,134.85,7.4155]
[1719133260917,7.442,134.88,134.84,7.416]
[1719133261316,20.0,134.89,134.84,7.416]
[1719133261910,7.442,134.88,134.84,7.416]
[1719133262110,20.0,134.89,134.84,7.416]
[1719133264230,7.442,134.88,134.84,7.416]
[1719133265738,27.4135,134.89,134.84,7.416]
[1719133266033,7.442,134.88,134.85,23.5647]
[1719133267121,7.442,134.88,134.85,16.1492]
[1719133269334,20.0,134.89,134.85,23.5647]
[1719133269640,7.442,134.88,134.85,23.5647]
[1719133273031,20.0,134.89,134.85,23.5647]
[1719133273240,7.4124,134.91,134.86,7.415]
[1719133273443,20.0,134.9,134.86,7.415]
[1719133273611,20.0,134.9,134.85,16.1492]
[1719133273935,7.442,134.89,134.85,23.5646]
[1719133274817,27.413,134.9,134.85,23.5646]
[1719133275019,7.442,134.89,134.85,23.5646]
[1719133275521,27.413,134.9,134.85,23.5646]
[1719133276428,7.413,134.9,134.85,23.5646]
[1719133276940,14.8545,134.91,134.85,23.5646]
[1719133277145,14.8545,134.91,134.86,7.4149]
[1719133277937,20.0,134.9,134.86,7.4149]
[1719133279843,20.0,134.9,134.87,7.4144]
[1719133280019,27.442,134.91,134.87,7.4144]
[1719133280621,27.442,134.91,134.85,16.1492]
[1719133282029,27.442,134.91,134.87,7.4143]
[1719133291451,20.0,134.91,134.87,7.4143]
[1719133291754,27.442,134.91,134.87,7.4143]
[1719133292050,20.0,134.91,134.87,7.4143]
[1719133292552,27.442,134.91,134.87,7.4143]
[1719133292856,27.442,134.91,134.88,7.4137]
[1719133292857,20.0,134.91,134.88,7.4137]
[1719133293046,20.3264171,134.94,134.89,0.63627367]
[1719133293364,7.5815,134.93,134.89,0.63627367]
[1719133293527,20.0,134.92,134.89,0.63627367]
[1719133293727,7.442,134.91,134.89,0.63627367]
[1719133294055,7.442,134.91,134.88,0.63821041]
[1719133295529,27.4118,134.92,134.88,0.63821041]
[1719133295827,34.8538,134.92,134.88,0.63821041]
[1719133296126,20.0,134.92,134.88,100.63821041]
[1719133296321,20.0,134.92,134.88,100.0]
[1719133296755,34.8538,134.92,134.88,100.0]
[1719133297050,27.4118,134.92,134.88,100.0]
[1719133297454,20.0,134.92,134.88,100.0]
[1719133298351,20.0,134.92,134.88,107.4138]
[1719133298753,27.442,134.92,134.88,107.4138]
[1719133301258,20.0,134.92,134.88,107.4138]
[1719133302168,27.442,134.92,134.88,107.4138]
[1719133306867,20.0,134.92,134.88,107.4138]
[1719133307053,27.442,134.92,134.88,107.4138]
[1719133309164,20.0,134.92,134.88,107.4138]
[1719133309350,27.4118,134.92,134.87,7.4143]
[1719133317173,20.0,134.92,134.88,7.4139]
[1719133319164,7.442,134.91,134.88,7.4139]
[1719133320353,20.0,134.92,134.88,7.4139]
[1719133320674,20.0,134.92,134.89,7.4132]
[1719133320974,20.0,134.93,134.89,7.4132]
[1719133321169,7.442,134.92,134.89,7.4132]
[1719133322159,7.442,134.92,134.88,7.4137]
[1719133324975,7.442,134.92,134.86,6.6211]
[1719133325162,27.442,134.91,134.85,16.1492]
[1719133325359,20.0,134.9,134.86,7.4147]
[1719133328671,20.0,134.9,134.87,7.4144]
[1719133329748,27.442,134.91,134.87,7.4144]
[1719133330269,20.0,134.91,134.88,7.4139]
[1719133330446,20.0,134.92,134.88,7.4139]
[1719133330846,7.442,134.91,134.88,7.4139]
[1719133331049,20.0,134.9,134.88,7.4139]
[1719133332163,27.442,134.91,134.88,7.4139]
[1719133332371,27.442,134.91,134.87,7.4143]
[1719133333485,34.8543,134.91,134.86,107.4149]
[1719133334253,27.4123,134.91,134.86,107.4149]
[1719133335077,34.8543,134.91,134.86,107.4149]
[1719133336181,34.8543,134.91,134.86,7.4149]
[1719133338683,27.442,134.91,134.87,7.4145]
[1719133350663,7.4131,134.9,134.85,7.4151]
[1719133350869,20.0,134.89,134.84,100.0]
[1719133351997,20.0,134.89,134.86,7.415]
[1719133352161,20.0,134.9,134.86,7.415]
[1719133353983,20.0,134.9,134.82,178.838275]
[1719133354188,0.17,134.89,134.82,172.542175]
[1719133354676,7.5834,134.89,134.82,172.542175]
[1719133354990,20.0,134.88,134.84,7.4158]
[1719133356470,20.0,134.88,134.85,7.4156]
[1719133357392,20.0,134.88,134.84,7.4159]
[1719133359803,20.0,134.88,134.85,7.4155]
[1719133359969,20.17,134.89,134.85,7.4155]
[1719133366794,20.0,134.89,134.86,7.415]
[1719133366994,20.0,134.9,134.86,7.415]
[1719133368188,20.0,134.9,134.85,7.4154]
[1719133369089,27.4131,134.9,134.85,7.4154]
[1719133370782,27.4131,134.9,134.84,107.4159]
[1719133372803,7.4135,134.89,134.84,107.4159]
[1719133373006,20.0,134.88,134.84,107.4159]
[1719133373895,7.4135,134.89,134.84,107.4159]
[1719133374101,30.0172,134.91,134.86,100.0]
[1719133374289,20.0,134.9,134.86,100.0]
[1719133374806,27.4132,134.9,134.86,100.0]
[1719133374987,7.4132,134.9,134.86,100.0]
[1719133377114,7.4125,134.91,134.86,100.0]
[1719133377313,20.0,134.9,134.86,100.0]
[1719133378805,20.0,134.9,134.86,107.415]
[1719133382216,20.0,134.9,134.87,7.4145]
[1719133382918,20.0,134.9,134.86,7.4149]
[1719133384122,27.433,134.91,134.86,7.4149]
[1719133384322,27.433,134.91,134.87,7.4145]
[1719133385728,27.433,134.91,134.86,7.4148]
[1719133388425,20.0,134.91,134.86,7.4148]
[1719133388614,27.433,134.91,134.86,7.4148]
[1719133388805,34.8454,134.91,134.86,7.4148]
[1719133392839,20.0,134.91,134.87,7.4145]
[1719133393150,27.433,134.91,134.87,7.4145]
[1719133403842,20.0,134.91,134.87,7.4145]
[1719133404044,27.433,134.91,134.87,7.4145]
[1719133407343,7.433,134.9,134.87,7.4145]
[1719133408748,20.0,134.91,134.88,7.4138]
[1719133408953,20.0,134.92,134.88,7.4138]
[1719133409152,7.433,134.91,134.88,7.4138]
[1719133409734,7.433,134.91,134.87,7.4143]
[1719133414256,27.4118,134.92,134.87,7.4143]
[1719133414554,7.433,134.91,134.87,7.4143]
[1719133415463,7.433,134.91,134.88,100.0]
[1719133418238,27.4118,134.92,134.88,100.0]
[1719133418454,7.433,134.91,134.88,100.0]
[1719133420762,27.4118,134.92,134.87,7.4143]
[1719133420945,7.433,134.91,134.87,7.4143]
[1719133422567,20.0,134.92,134.87,7.4143]
[1719133422757,7.4122,134.92,134.87,7.4143]
[1719133422935,27.4123,134.91,134.86,107.4149]
[1719133423264,7.4123,134.91,134.86,107.4149]
[1719133423439,20.0,134.9,134.86,107.4149]
[1719133423739,27.433,134.9,134.86,107.4149]
[1719133423939,20.0,134.9,134.86,107.4149]
[1719133424140,20.0,134.91,134.87,7.4145]
[1719133424734,7.433,134.9,134.87,7.4145]
[1719133427373,20.0,134.91,134.87,7.4145]
[1719133427548,7.433,134.9,134.87,7.4145]
[1719133430044,20.0,134.91,134.87,7.4145]
[1719133430383,7.433,134.9,134.87,7.4145]
[1719133432859,7.433,134.9,134.86,7.4148]
[1719133433566,7.433,134.9,134.87,7.4145]
[1719133436077,7.433,134.9,134.86,7.4148]
[1719133436655,7.433,134.9,134.85,7.4154]
[1719133436860,20.0,134.89,134.85,7.4154]
[1719133437451,20.0,134.89,134.86,7.415]
[1719133438845,27.433,134.9,134.87,7.4144]
[1719133441883,27.433,134.9,134.86,7.415]
[1719133442994,27.433,134.9,134.85,7.4154]
[1719133445273,27.433,134.9,134.86,7.415]
[1719133456378,27.433,134.9,134.85,7.4154]
[1719133457886,27.433,134.9,134.86,7.415]
[1719133459399,20.0,134.9,134.86,7.415]
[1719133460197,7.433,134.89,134.86,7.415]
[1719133463077,7.433,134.89,134.85,7.4154]
[1719133465385,27.4129,134.9,134.85,7.4154]
[1719133465684,7.433,134.89,134.85,7.4154]
[1719133467809,14.8464,134.89,134.84,107.4159]
[1719133468610,7.4134,134.89,134.84,107.4159]
[1719133468810,14.8464,134.89,134.84,107.4159]
[1719133491333,27.413,134.9,134.86,100.0]
[1719133491531,7.433,134.89,134.86,100.0]
[1719133494341,27.413,134.9,134.86,100.0]
[1719133495040,7.433,134.89,134.86,100.0]
[1719133496144,27.413,134.9,134.86,100.0]
[1719133497036,7.433,134.89,134.86,100.0]
[1719133500228,27.413,134.9,134.86,100.0]
[1719133500545,7.433,134.89,134.86,100.0]
[1719133501544,7.4121,134.92,134.88,100.0]
[1719133502043,20.0,134.91,134.88,100.0]
[1719133502446,7.433,134.9,134.88,100.0]
[1719133502650,20.0,134.91,134.88,100.0]
[1719133503558,7.433,134.9,134.88,100.0]
[1719133503924,27.4123,134.91,134.88,100.0]
[1719133504643,7.433,134.9,134.88,100.0]
[1719133509226,20.0,134.91,134.88,107.4139]
[1719133509549,20.0,134.92,134.88,107.4139]
[1719133510136,27.4118,134.92,134.88,100.0]
[1719133514550,7.4125,134.91,134.86,123.1445]
[1719133514758,7.4129,134.9,134.86,100.0]
[1719133516727,7.4125,134.91,134.86,107.415]
[1719133518053,27.412,134.92,134.87,7.4145]
[1719133520154,20.0,134.92,134.88,107.4137]
[1719133520546,27.4118,134.92,134.87,7.4144]
[1719133521452,20.0,134.92,134.88,7.4139]
[1719133526461,27.4121,134.92,134.86,107.4146]
[1719133526649,27.4121,134.92,134.87,7.4144]
[1719133528143,20.0,134.92,134.86,100.0]
[1719133528342,7.4132,134.9,134.86,100.0]
[1719133529363,7.4132,134.9,134.85,7.4152]
[1719133530367,20.0,134.89,134.85,7.4152]
[1719133530659,27.433,134.89,134.86,7.415]
[1719133530859,27.433,134.89,134.84,100.0]
[1719133531061,34.8464,134.89,134.84,7.4158]
[1719133531861,20.0,134.89,134.85,7.4155]
[1719133533171,27.433,134.89,134.85,7.4155]
[1719133541561,20.0,134.89,134.86,7.415]
[1719133542651,27.433,134.89,134.86,7.415]
[1719133545675,27.433,134.89,134.85,7.4154]
[1719133546476,20.0,134.89,134.85,7.4154]
[1719133546658,27.433,134.89,134.85,7.4154]
[1719133550458,34.8465,134.89,134.84,107.416]
[1719133551465,27.433,134.89,134.84,107.416]
[1719133551965,20.0,134.89,134.85,7.4154]
[1719133553456,27.433,134.89,134.85,7.4154]
[1719133556377,20.0,134.89,134.85,7.4154]
[1719133557178,27.433,134.89,134.85,7.4154]
[1719133561591,27.433,134.89,134.84,7.416]
[1719133561879,34.8467,134.89,134.84,7.416]
[1719133562769,27.433,134.89,134.85,7.4155]
[1719133564377,20.0,134.89,134.86,7.4149]
[1719133564788,20.0,134.89,134.85,7.4154]
[1719133565575,27.433,134.89,134.85,7.4154]
[1719133567494,20.0,134.89,134.85,7.4154]
[1719133567890,27.433,134.89,134.85,7.4154]
[1719133568707,27.433,134.89,134.84,7.4159]
[1719133568867,27.433,134.89,134.85,7.4156]
[1719133569395,20.0,134.89,134.85,7.4156]
[1719133569763,20.0,134.89,134.84,7.4159]
[1719133570893,27.433,134.89,134.84,7.4159]
[1719133571067,34.8465,134.89,134.84,7.4159]
[1719133573095,27.433,134.89,134.84,7.4159]
[1719133574385,20.0,134.89,134.85,7.4153]
[1719133574793,27.433,134.89,134.85,7.4153]
[1719133575167,20.0,134.89,134.85,7.4153]
[1719133575585,27.433,134.89,134.85,7.4153]
[1719133577599,20.0,134.89,134.85,7.4153]
[1719133577789,27.433,134.89,134.85,7.4153]
[1719133578275,27.433,134.89,134.85,7.4156]
[1719133580992,27.433,134.89,134.84,7.4159]
[1719133581999,34.8465,134.89,134.84,7.4159]
[1719133584685,7.414,134.88,134.83,107.4166]
[1719133584881,20.0,134.87,134.83,107.4166]
[1719133585401,20.0,134.88,134.83,107.4166]
[1719133585600,20.0,134.88,134.84,7.4161]
[1719133588010,20.0,134.88,134.83,107.4165]
[1719133589104,27.433,134.88,134.83,107.4165]
[1719133589284,27.433,134.88,134.84,7.4161]
[1719133590097,27.433,134.88,134.83,107.4165]
[1719133590475,20.0,134.88,134.83,107.4165]
[1719133590791,27.433,134.88,134.83,107.4165]
[1719133594399,34.8471,134.88,134.83,107.4165]
[1719133604917,20.0,134.88,134.84,7.4161]
[1719133605119,27.433,134.88,134.84,7.4161]
[1719133606333,27.433,134.88,134.83,107.4165]
[1719133610050,34.847,134.88,134.83,107.4165]
[1719133611240,27.414,134.88,134.83,107.4165]
[1719133611537,34.847,134.88,134.83,107.4165]
[1719133618824,27.433,134.88,134.84,7.416]
[1719133620858,20.0,134.88,134.85,7.4155]
[1719133621833,27.433,134.88,134.85,7.4155]
[1719133622750,27.433,134.88,134.84,7.416]
[1719133622925,34.847,134.88,134.83,107.4166]
[1719133623241,27.433,134.88,134.83,107.4166]
[1719133625126,27.433,134.88,134.84,7.416]
[1719133626169,20.0,134.88,134.84,7.416]
[1719133626448,27.433,134.88,134.84,7.416]
[1719133635548,20.0,134.88,134.85,7.4155]
[1719133637549,27.433,134.88,134.85,7.4155]
[1719133637935,27.433,134.88,134.85,107.4155]
[1719133639655,20.0,134.88,134.87,100.0]
[1719133639960,22.9012,134.92,134.87,107.4145]
[1719133640261,27.4125,134.91,134.87,100.0]
[1719133640550,27.4125,134.91,134.86,7.4148]
[1719133640746,7.433,134.9,134.86,7.4148]
[1719133641057,27.433,134.89,134.86,7.4148]
[1719133641433,20.0,134.89,134.85,107.4154]
[1719133641956,7.433,134.88,134.85,107.4154]
[1719133643762,20.0,134.89,134.85,107.4154]
[1719133644064,20.0,134.89,134.85,100.0]
[1719133644260,20.0,134.91,134.87,100.0]
[1719133644657,27.4123,134.91,134.87,100.0]
[1719133645293,7.433,134.9,134.87,100.0]
[1719133648370,7.433,134.9,134.87,107.4143]
[1719133650559,7.433,134.9,134.87,100.0]
[1719133652647,20.0,134.91,134.87,100.0]
[1719133653678,27.4123,134.91,134.87,100.0]
[1719133671860,20.0,134.91,134.87,100.0]
[1719133674482,20.0,134.91,134.87,107.4144]
[1719133683794,27.4123,134.91,134.85,100.0]
[1719133683990,20.0,134.91,134.84,6.4097]
[1719133684194,7.4132,134.9,134.85,7.4154]
[1719133684402,27.4134,134.89,134.84,13.8256]
[1719133685120,20.0,134.89,134.84,13.8256]
[1719133685324,20.0,134.89,134.85,7.4155]
[1719133685988,20.0,134.89,134.86,7.415]
[1719133686315,20.0,134.9,134.86,7.415]
[1719133688400,20.0,134.91,134.86,7.415]
[1719133689319,27.4123,134.91,134.86,7.415]
[1719133692421,7.4129,134.9,134.85,107.4154]
[1719133692722,20.0,134.89,134.85,107.4154]
[1719133697950,20.0,134.89,134.85,100.0]
[1719133698257,27.4135,134.89,134.85,100.0]
[1719133701276,20.0,134.89,134.85,100.0]
[1719133701462,18.5292,134.93,134.87,100.0]
[1719133701463,7.433,134.9,134.87,100.0]
[1719133702458,20.0,134.91,134.87,100.0]
[1719133702638,20.0,134.91,134.87,107.4141]
[1719133702844,14.844,134.92,134.87,107.4141]
[1719133706149,7.432,134.9,134.87,100.0]
[1719133707562,7.432,134.9,134.87,107.4144]
[1719133708349,7.432,134.91,134.87,107.4144]
[1719133712443,7.432,134.92,134.87,107.4144]
[1719133718066,7.432,134.92,134.88,7.4139]
[1719133719361,7.432,134.92,134.89,1.4148748]
[1719133721267,7.432,134.92,134.88,7.4139]
[1719133726174,7.7373171,134.94,134.89,7.4134]
[1719133726353,20.0,134.93,134.89,107.4134]
[1719133726555,27.4114,134.93,134.89,100.0]
[1719133726764,7.432,134.92,134.89,100.0]
[1719133727275,27.4116,134.93,134.89,100.0]
[1719133728390,7.432,134.92,134.89,100.0]
[1719133732585,20.0,134.93,134.89,107.4133]
[1719133734101,7.432,134.92,134.89,107.4133]
[1719133734584,20.0,134.93,134.89,107.4133]
[1719133735182,7.432,134.92,134.89,107.4133]
[1719133742109,20.0,134.93,134.89,107.4133]
[1719133742285,20.0,134.93,134.91,100.0]
[1719133742465,20.3264171,134.94,134.91,100.0]
[1719133743276,27.7584171,134.94,134.91,100.0]
[1719133744470,20.3264171,134.94,134.91,107.4121]
[1719133744773,0.3264171,134.94,134.91,107.4121]
[1719133745398,7.7584171,134.94,134.91,107.4121]
[1719133746371,0.3264171,134.94,134.91,107.4121]
[1719133747907,19.8264171,134.95,134.91,107.4121]
[1719133761405,27.2366171,134.95,134.91,100.0]
[1719133761613,7.4107,134.94,134.9,6.6223]
[1719133762996,27.2367171,134.95,134.9,14.0351]
[1719133765298,27.2367171,134.95,134.91,100.0]
[1719133765700,19.8264171,134.95,134.91,107.4122]
[1719133785435,19.8264171,134.95,134.91,100.0]
[1719133792105,19.8264171,134.95,134.9,7.4126]
[1719133792311,7.4107,134.94,134.89,7.4132]
[1719133792518,20.0,134.93,134.89,7.4132]
[1719133793211,20.0,134.93,134.89,107.4132]
[1719133793715,7.4103,134.95,134.89,107.4132]
[1719133793935,20.0,134.94,134.89,107.4132]
[1719133794437,27.432,134.94,134.89,107.4132]
[1719133794933,20.0,134.94,134.9,7.4126]
[1719133795120,20.0,134.95,134.9,7.4126]
[1719133795327,20.0,134.95,134.91,7.4122]
[1719133795531,27.432,134.95,134.91,7.4122]
[1719133796644,20.0,134.95,134.91,7.4122]
[1719133796817,7.432,134.94,134.9,7.4128]
[1719133797019,20.0,134.93,134.9,7.4128]
[1719133797432,20.0,134.93,134.91,107.4123]
[1719133797638,27.432,134.94,134.91,100.0]
[1719133800442,20.0,134.94,134.91,100.0]
[1719133800644,27.432,134.94,134.91,100.0]
[1719133801330,34.8427,134.94,134.91,100.0]
[1719133806250,27.4107,134.94,134.91,100.0]
[1719133806743,34.8427,134.94,134.91,100.0]
[1719133809645,27.4107,134.94,134.91,100.0]
[1719133810755,34.8427,134.94,134.91,100.0]
[1719133812561,27.432,134.94,134.91,100.0]
[1719133812738,7.4116,134.93,134.91,100.0]
[1719133813263,7.4118,134.92,134.89,115.1349]
[1719133813629,7.4114,134.93,134.89,115.1349]
[1719133815442,34.8428,134.94,134.89,115.1349]
[1719133816447,34.8428,134.94,134.89,122.5483]
[1719133816868,27.4108,134.94,134.89,122.5483]
[1719133817076,34.8428,134.94,134.89,122.5483]
[1719133817844,27.432,134.94,134.89,122.5483]
[1719133818148,20.0,134.94,134.9,7.4127]
[1719133818773,27.432,134.94,134.9,7.4127]
[1719133820770,20.0,134.94,134.9,7.4127]
[1719133821060,20.0,134.94,134.91,100.0]
[1719133821407,20.0,134.93,134.91,100.0]
[1719133821664,20.0,134.95,134.91,100.0]
[1719133822369,7.432,134.94,134.91,100.0]
[1719133822681,20.0,134.93,134.91,100.0]
[1719133823544,7.4092,134.97,134.91,100.0]
[1719133823748,20.0,134.96,134.91,100.0]
[1719133824465,20.0,134.96,134.92,7.4115]
[1719133825548,20.0,134.96,134.91,107.4122]
[1719133825880,7.432,134.95,134.91,107.4122]
[1719133826372,27.4096,134.96,134.91,107.4122]
[1719133833083,7.432,135.0,134.94,100.0]
[1719133833259,33.7952,135.01,134.94,100.0]
[1719133833458,7.4083,134.99,134.94,100.0]
[1719133833662,20.0,134.98,134.94,100.0]
[1719133834286,20.0,134.98,134.96,100.0]
[1719133835259,34.8405,134.98,134.96,100.0]
[1719133835459,34.8405,134.98,134.94,106.6552]
[1719133835696,27.4085,134.98,134.94,106.6552]
[1719133836264,34.8405,134.98,134.94,106.6552]
[1719133838096,34.8405,134.98,134.94,100.0]
[1719133839286,7.4091,134.97,134.93,16.6522]
[1719133839782,20.0,134.96,134.92,107.4115]
[1719133845267,20.0,134.97,134.92,107.4115]
[1719133846162,20.0,134.97,134.94,100.0]
[1719133846483,7.432,134.98,134.94,107.4105]
[1719133848010,14.8401,134.99,134.96,100.0]
[1719133848213,20.0,134.98,134.96,100.0]
[1719133852483,20.0,134.98,134.94,107.4105]
[1719133852780,27.4089,134.98,134.94,100.0]
[1719133854412,20.0,134.98,134.94,100.0]
[1719133858528,20.0,134.98,134.94,107.4104]
[1719133858952,20.0,134.98,134.94,100.0]
[1719133860415,27.4085,134.98,134.94,100.0]
[1719133863031,20.0,134.98,134.94,100.0]
[1719133864138,20.0,134.98,134.95,7.41]
[1719133864431,20.0,134.98,134.94,107.4105]
[1719133867402,27.4087,134.98,134.92,100.0]
[1719133867924,27.4087,134.98,134.93,7.4112]
[1719133880941,7.432,134.97,134.93,7.4112]
[1719133886858,27.4087,134.98,134.93,7.4112]
[1719133887251,7.432,134.97,134.93,7.4112]
[1719133904015,27.4087,134.98,134.93,7.4112]
[1719133904333,7.432,134.97,134.93,7.4112]
[1719133906056,20.0,134.98,134.94,107.4106]
[1719133906540,20.0,134.98,134.95,7.4101]
[1719133906734,20.0,134.99,134.95,7.4101]
[1719133907443,20.0,134.99,134.96,100.0]
[1719133908038,27.432,134.99,134.96,100.0]
[1719133912260,34.84,134.99,134.96,100.0]
[1719133912852,27.408,134.99,134.96,100.0]
[1719133913251,7.4085,134.98,134.96,100.0]
[1719133914969,34.8401,134.99,134.96,100.0]
[1719133917742,27.4081,134.99,134.96,100.0]
[1719133917947,34.8401,134.99,134.96,100.0]
[1719133919952,14.8401,134.99,134.96,100.0]
[1719133923791,7.4081,134.99,134.96,100.0]
[1719133923963,14.8401,134.99,134.96,100.0]
[1719133924859,7.432,134.99,134.94,100.0]
[1719133925184,7.4085,134.98,134.94,100.0]
[1719133926665,7.4076,135.0,134.96,100.0]
[1719133927561,7.432,134.99,134.96,100.0]
[1719133930681,20.0,134.98,134.96,100.0]
[1719133938001,20.0,134.98,134.94,100.0]
[1719133938171,27.4088,134.98,134.94,100.0]
[1719133940407,20.0,134.98,134.94,100.0]
[1719133941382,20.0,134.98,134.94,107.4106]
[1719133941790,20.0,134.98,134.96,100.0]
[1719133949110,14.8393,135.01,134.96,100.0]
[1719133949314,16.1489,135.03,134.96,100.0]
[1719133949315,7.4085,134.98,134.96,100.0]
[1719133949684,14.84,134.99,134.96,100.0]
[1719133951221,7.408,134.99,134.96,100.0]
[1719133951389,14.84,134.99,134.96,100.0]
[1719133951909,20.0,134.98,134.96,100.0]
[1719133955110,7.4077,135.0,134.96,100.0]
[1719133955111,27.432,134.99,134.96,100.0]
[1719133961018,34.84,134.99,134.96,100.0]
[1719133962540,27.408,134.99,134.96,100.0]
[1719133964723,20.0,134.99,134.96,100.0]
[1719133965999,27.4074,135.0,134.96,100.0]
[1719133966922,34.8394,135.0,134.96,100.0]
[1719133967431,27.4074,135.0,134.96,100.0]
[1719133967900,34.8394,135.0,134.96,100.0]
[1719133969720,27.4074,135.0,134.96,100.0]
[1719133970816,20.0,135.0,134.98,100.0]
[1719133971023,18.5162,135.02,134.98,100.0]
[1719133971326,7.4079,134.99,134.98,100.0]
[1719133972311,7.4101,134.95,134.94,100.0]
[1719133972509,7.4098,134.96,134.94,100.0]
[1719133985541,20.0,134.95,134.94,100.0]
[1719133986845,7.4098,134.96,134.94,100.0]
[1719133992917,7.4101,134.95,134.94,100.0]
[1719133995230,7.4097,134.96,134.94,100.0]
[1719133998741,14.8357,134.96,134.94,100.0]
[1719134001154,7.4092,134.97,134.94,100.0]
[1719134001338,7.426,134.96,134.94,100.0]
[1719134001722,7.4092,134.97,134.94,100.0]
[1719134002551,7.426,134.96,134.94,100.0]
[1719134004647,7.4092,134.97,134.94,100.0]
[1719134004854,7.426,134.96,134.94,100.0]
[1719134007266,7.4097,134.96,134.94,100.0]
[1719134007561,7.426,134.96,134.94,100.0]
[1719134009451,7.4092,134.97,134.94,100.0]
[1719134009657,7.426,134.96,134.94,100.0]
[1719134010451,14.8356,134.96,134.94,100.0]
[1719134014964,18.521,134.99,134.94,100.0]
[1719134015143,27.426,134.98,134.94,100.0]
[1719134016037,14.8356,134.96,134.94,100.0]
[1719134026280,14.8352,134.97,134.94,100.0]
[1719134026446,27.4087,134.98,134.96,100.0]
[1719134026652,7.4083,134.99,134.96,100.0]
[1719134027579,7.4085,134.98,134.96,100.0]
[1719134028572,7.426,134.98,134.96,100.0]
[1719134031149,18.5173,135.01,134.98,100.0]
[1719134031150,7.4072,135.01,134.98,100.0]
[1719134031356,7.4075,135.0,134.98,100.0]
[1719134031783,7.426,134.99,134.98,100.0]
[1719134035484,7.426,135.0,134.98,100.0]
[1719134035987,7.407,135.01,134.98,100.0]
[1719134036585,7.426,135.0,134.98,100.0]
[1719134038586,18.5143,135.04,134.99,100.0]
[1719134038587,7.4065,135.02,134.99,100.0]
[1719134038794,7.4068,135.01,134.99,100.0]
[1719134039280,7.4064,135.02,134.99,100.0]
[1719134039467,7.426,135.01,134.99,100.0]
[1719134039784,14.8328,135.01,134.99,100.0]
[1719134040166,7.4068,135.01,134.99,100.0]
[1719134040583,7.4074,135.0,134.99,100.0]
[1719134048500,14.8334,135.0,134.99,100.0]
[1719134056104,7.4074,135.0,134.99,100.0]
[1719134056316,14.8334,135.0,134.99,100.0]
[1719134056809,7.4074,135.0,134.99,100.0]
[1719134057608,14.8334,135.0,134.99,100.0]